[Event "*** Titled Tuesday Blitz"]
[Site "Chess.com"]
[Date "2018.08.07"]
[Round "4"]
[White "Raja3401"]
[Black "Supernotar"]
[Result "1/2-1/2"]
[WhiteElo "2615"]
[BlackElo "2467"]
[TimeControl "180+2"]
[EndTime "13:49:13 PDT"]
[Termination "Game drawn by agreement"]

1. e4 {[%clk 0:03:01.9]} 1... c6 {[%clk 0:03:00.7]} 2. Nf3 {[%clk 0:03:03]} 2...
d5 {[%clk 0:03:01.7]} 3. Nc3 {[%clk 0:03:04.6]} 3... Bg4 {[%clk 0:03:02.4]} 4.
h3 {[%clk 0:03:04.5]} 4... Bxf3 {[%clk 0:03:03.6]} 5. Qxf3 {[%clk 0:03:06.1]}
5... e6 {[%clk 0:03:04.8]} 6. d4 {[%clk 0:03:04.9]} 6... Nf6 {[%clk 0:03:04.8]}
7. Bd3 {[%clk 0:03:04.8]} 7... dxe4 {[%clk 0:02:55]} 8. Nxe4 {[%clk 0:03:05.1]}
8... Nxe4 {[%clk 0:02:52.3]} 9. Qxe4 {[%clk 0:03:03.1]} 9... Nd7 {[%clk
0:02:52.9]} 10. O-O {[%clk 0:02:54.4]} 10... Nf6 {[%clk 0:02:53.7]} 11. Qh4
{[%clk 0:02:53.4]} 11... Be7 {[%clk 0:02:54.3]} 12. c3 {[%clk 0:02:49.5]} 12...
O-O {[%clk 0:02:48.6]} 13. Bg5 {[%clk 0:02:49]} 13... g6 {[%clk 0:02:35.5]} 14.
Rfe1 {[%clk 0:02:41.1]} 14... Nd5 {[%clk 0:02:35]} 15. Bxe7 {[%clk 0:02:40.1]}
15... Qxe7 {[%clk 0:02:36.1]} 16. Qh6 {[%clk 0:02:39.2]} 16... Rfd8 {[%clk
0:02:32.2]} 17. Re5 {[%clk 0:02:37.9]} 17... Qf8 {[%clk 0:02:19.4]} 18. Qh4
{[%clk 0:02:34.1]} 18... Rd7 {[%clk 0:02:14.3]} 19. Rae1 {[%clk 0:02:34.1]}
19... Rad8 {[%clk 0:02:14]} 20. a3 {[%clk 0:02:28.4]} 20... b5 {[%clk
0:02:13.6]} 21. Bb1 {[%clk 0:02:21.7]} 21... a5 {[%clk 0:02:12.2]} 22. Qg4
{[%clk 0:01:57.8]} 22... a4 {[%clk 0:02:09.2]} 23. h4 {[%clk 0:01:54.6]} 23...
Qg7 {[%clk 0:02:09.4]} 24. h5 {[%clk 0:01:54.6]} 24... Nf6 {[%clk 0:02:02.5]}
25. Qf3 {[%clk 0:01:55.7]} 25... Nd5 {[%clk 0:02:02.7]} 26. hxg6 {[%clk
0:01:54.5]} 26... hxg6 {[%clk 0:02:02.9]} 27. Qg4 {[%clk 0:01:54.9]} 27... Kf8
{[%clk 0:01:58.7]} 28. Qh4 {[%clk 0:01:38.1]} 28... Qf6 {[%clk 0:01:39.6]} 29.
Qh6+ {[%clk 0:01:38.2]} 29... Qg7 {[%clk 0:01:37.3]} 30. Qh3 {[%clk 0:01:36.7]}
30... Qf6 {[%clk 0:01:35.3]} 31. R1e4 {[%clk 0:01:32.8]} 31... Ke7 {[%clk
0:01:29.5]} 32. Rh4 {[%clk 0:01:17.8]} 32... Rd6 {[%clk 0:01:18.6]} 33. Rh7
{[%clk 0:01:11.7]} 33... Rg8 {[%clk 0:01:00.9]} 34. Qg4 {[%clk 0:01:10.9]} 34...
Nf4 {[%clk 0:00:51.9]} 35. Re4 {[%clk 0:00:51.9]} 35... Nd5 {[%clk 0:00:50.6]}
36. Rh3 {[%clk 0:00:49.1]} 36... Rh8 {[%clk 0:00:43.4]} 37. Rf3 {[%clk 0:00:40]}
37... Qg7 {[%clk 0:00:43.4]} 38. Re5 {[%clk 0:00:38.1]} 38... Qh6 {[%clk
0:00:38.6]} 39. Qg5+ {[%clk 0:00:30.5]} 39... Qxg5 {[%clk 0:00:39.4]} 40. Rxg5
{[%clk 0:00:32.4]} 40... Rdd8 {[%clk 0:00:38.3]} 41. Be4 {[%clk 0:00:30.8]}
41... Rh6 {[%clk 0:00:37.5]} 42. g3 {[%clk 0:00:23.6]} 42... Rdh8 {[%clk
0:00:36]} 43. Rd3 {[%clk 0:00:23.3]} 43... Rh2 {[%clk 0:00:33.6]} 44. Bg2 {[%clk
0:00:21.5]} 44... R2h6 {[%clk 0:00:33.3]} 45. Re5 {[%clk 0:00:22.1]} 45... Kd6
{[%clk 0:00:31.4]} 46. Rd1 {[%clk 0:00:22]} 46... R8h7 {[%clk 0:00:31.9]} 47.
Rde1 {[%clk 0:00:23.2]} 47... Rh8 {[%clk 0:00:31.3]} 48. Bf3 {[%clk 0:00:23.8]}
48... R6h7 {[%clk 0:00:31.2]} 49. Bg2 {[%clk 0:00:24.9]} 49... Rh6 {[%clk
0:00:32.5]} 50. R5e4 {[%clk 0:00:25.1]} 50... R6h7 {[%clk 0:00:32.6]} 51. Re5
{[%clk 0:00:26.1]} 51... Rh6 {[%clk 0:00:33.8]} 52. R5e4 {[%clk 0:00:25.3]}
52... R6h7 {[%clk 0:00:33.6]} 1/2-1/2

[Event "*** Titled Tuesday Blitz"]
[Site "Chess.com"]
[Date "2018.08.07"]
[Round "4"]
[White "nihalsarin"]
[Black "LastHeroJr"]
[Result "1-0"]
[WhiteElo "2768"]
[BlackElo "2505"]
[TimeControl "180+2"]
[EndTime "13:49:13 PDT"]
[Termination "nihalsarin won on time"]

1. e4 {[%clk 0:03:01.9]} 1... d6 {[%clk 0:03:01.3]} 2. d3 {[%clk 0:02:58.5]}
2... Nf6 {[%clk 0:03:02]} 3. Nd2 {[%clk 0:03:00.4]} 3... g6 {[%clk 0:03:03.2]}
4. g3 {[%clk 0:03:01.4]} 4... Bg7 {[%clk 0:03:03.7]} 5. Bg2 {[%clk 0:03:03]}
5... O-O {[%clk 0:03:04.6]} 6. Ngf3 {[%clk 0:03:04.7]} 6... c5 {[%clk
0:03:05.9]} 7. O-O {[%clk 0:03:06.5]} 7... Nc6 {[%clk 0:03:07.1]} 8. Re1 {[%clk
0:03:08.4]} 8... Nd7 {[%clk 0:03:06.6]} 9. c3 {[%clk 0:03:07.6]} 9... Rb8 {[%clk
0:03:06.2]} 10. h4 {[%clk 0:03:07.9]} 10... b5 {[%clk 0:02:55]} 11. a3 {[%clk
0:03:09.3]} 11... a5 {[%clk 0:02:53.7]} 12. h5 {[%clk 0:03:09.9]} 12... b4
{[%clk 0:02:54.3]} 13. axb4 {[%clk 0:03:11.8]} 13... axb4 {[%clk 0:02:55.7]} 14.
hxg6 {[%clk 0:03:12.8]} 14... hxg6 {[%clk 0:02:55.9]} 15. Qc2 {[%clk 0:03:12.3]}
15... bxc3 {[%clk 0:02:47.4]} 16. bxc3 {[%clk 0:03:14.2]} 16... Nb4 {[%clk
0:02:48.8]} 17. cxb4 {[%clk 0:03:03.8]} 17... Bxa1 {[%clk 0:02:49.5]} 18. Nb3
{[%clk 0:03:05.1]} 18... Bg7 {[%clk 0:02:48.5]} 19. bxc5 {[%clk 0:03:06.5]}
19... Nxc5 {[%clk 0:02:42.3]} 20. Nxc5 {[%clk 0:03:07.8]} 20... dxc5 {[%clk
0:02:43.8]} 21. Qxc5 {[%clk 0:03:03.9]} 21... Qxd3 {[%clk 0:02:42.3]} 22. Qxe7
{[%clk 0:03:05.4]} 22... Rb1 {[%clk 0:02:06.4]} 23. Qh4 {[%clk 0:02:57]} 23...
Qc3 {[%clk 0:01:48.9]} 24. Bd2 {[%clk 0:02:07.1]} 24... Rxe1+ {[%clk 0:01:48.9]}
25. Bxe1 {[%clk 0:02:09]} 25... Qc1 {[%clk 0:01:50.1]} 26. Qe7 {[%clk
0:01:54.9]} 26... Bg4 {[%clk 0:01:39.3]} 27. Qb4 {[%clk 0:01:49.5]} 27... Rc8
{[%clk 0:01:31.4]} 28. Kh2 {[%clk 0:01:48.3]} 28... Qh6+ {[%clk 0:01:21.5]} 29.
Kg1 {[%clk 0:01:48.7]} 29... Qh5 {[%clk 0:01:19.6]} 30. Nh2 {[%clk 0:01:45.6]}
30... Bh3 {[%clk 0:01:05]} 31. Bxh3 {[%clk 0:01:33.1]} 31... Qxh3 {[%clk
0:01:05.8]} 32. Bd2 {[%clk 0:01:35]} 32... Rd8 {[%clk 0:00:55]} 33. Nf3 {[%clk
0:01:26.9]} 33... Ra8 {[%clk 0:00:52.1]} 34. Bc3 {[%clk 0:01:23.3]} 34... Bxc3
{[%clk 0:00:46.6]} 35. Qxc3 {[%clk 0:01:25.2]} 35... Rd8 {[%clk 0:00:47.1]} 36.
Qa1 {[%clk 0:01:22.4]} 36... Qg4 {[%clk 0:00:42.8]} 37. Qf6 {[%clk 0:01:17.3]}
37... Re8 {[%clk 0:00:26.9]} 38. Ng5 {[%clk 0:01:05.2]} 38... Qd7 {[%clk
0:00:26.3]} 39. e5 {[%clk 0:01:02.7]} 39... Qd1+ {[%clk 0:00:20.7]} 40. Kh2
{[%clk 0:01:00.9]} 40... Rf8 {[%clk 0:00:14.9]} 41. e6 {[%clk 0:00:58.5]} 41...
Qh5+ {[%clk 0:00:15.8]} 42. Kg2 {[%clk 0:00:59]} 42... fxe6 {[%clk 0:00:16.3]}
43. Qxe6+ {[%clk 0:01:00.6]} 43... Kh8 {[%clk 0:00:14.1]} 44. Qe7 {[%clk
0:00:58.1]} 44... Rg8 {[%clk 0:00:08.8]} 45. Nf7+ {[%clk 0:00:44.6]} 45... Kg7
{[%clk 0:00:08.5]} 46. Ne5+ {[%clk 0:00:40.4]} 46... Kh8 {[%clk 0:00:04.1]} 47.
g4 {[%clk 0:00:41.3]} 1-0

[Event "*** Titled Tuesday Blitz"]
[Site "Chess.com"]
[Date "2018.08.07"]
[Round "4"]
[White "murmah2003"]
[Black "hypert"]
[Result "1-0"]
[WhiteElo "2567"]
[BlackElo "2337"]
[TimeControl "180+2"]
[EndTime "13:49:17 PDT"]
[Termination "murmah2003 won on time"]

1. d4 {[%clk 0:02:58]} 1... Nf6 {[%clk 0:03:00.7]} 2. c4 {[%clk 0:02:55.5]} 2...
e6 {[%clk 0:03:01.9]} 3. Nf3 {[%clk 0:02:49.5]} 3... d5 {[%clk 0:03:02]} 4. Nc3
{[%clk 0:02:47]} 4... Bb4 {[%clk 0:03:02.3]} 5. cxd5 {[%clk 0:02:44]} 5... exd5
{[%clk 0:03:02.7]} 6. Bg5 {[%clk 0:02:44.9]} 6... h6 {[%clk 0:03:02.9]} 7. Bh4
{[%clk 0:02:40.1]} 7... g5 {[%clk 0:02:39]} 8. Bg3 {[%clk 0:02:39.2]} 8... Ne4
{[%clk 0:02:39.4]} 9. Nd2 {[%clk 0:02:39.1]} 9... Nxg3 {[%clk 0:02:37.4]} 10.
hxg3 {[%clk 0:02:38.9]} 10... Be6 {[%clk 0:02:28]} 11. e3 {[%clk 0:02:31]} 11...
Nd7 {[%clk 0:02:23.5]} 12. Bd3 {[%clk 0:02:21.9]} 12... Nb6 {[%clk 0:02:22.2]}
13. Rc1 {[%clk 0:02:16.3]} 13... c6 {[%clk 0:02:16.7]} 14. a3 {[%clk 0:01:58.6]}
14... Bf8 {[%clk 0:02:17.2]} 15. Qh5 {[%clk 0:01:42.5]} 15... Bg7 {[%clk
0:02:15.8]} 16. Nf3 {[%clk 0:01:36.1]} 16... Qf6 {[%clk 0:01:53.5]} 17. Ne5
{[%clk 0:01:28.8]} 17... O-O-O {[%clk 0:01:47]} 18. Ne2 {[%clk 0:00:59.3]} 18...
Nd7 {[%clk 0:01:31.7]} 19. Nxd7 {[%clk 0:00:44.3]} 19... Bxd7 {[%clk 0:01:33.6]}
20. g4 {[%clk 0:00:44.5]} 20... Rhf8 {[%clk 0:01:19.5]} 21. Ng3 {[%clk
0:00:43.1]} 21... Qe7 {[%clk 0:01:13.8]} 22. O-O {[%clk 0:00:32.9]} 22... Kb8
{[%clk 0:01:04]} 23. Bf5 {[%clk 0:00:28.1]} 23... Be8 {[%clk 0:01:04.7]} 24. Qh2
{[%clk 0:00:24.7]} 24... Ka8 {[%clk 0:01:04.4]} 25. Nh5 {[%clk 0:00:23.9]} 25...
Bh8 {[%clk 0:01:03.8]} 26. b4 {[%clk 0:00:21.9]} 26... f6 {[%clk 0:01:00.6]} 27.
Rb1 {[%clk 0:00:12.9]} 27... Qd6 {[%clk 0:00:55.7]} 28. Qh3 {[%clk 0:00:10.4]}
28... Bxh5 {[%clk 0:00:55.4]} 29. gxh5 {[%clk 0:00:04.7]} 29... Bg7 {[%clk
0:00:57]} 30. g4 {[%clk 0:00:05.8]} 30... Rfe8 {[%clk 0:00:56]} 31. Rfc1 {[%clk
0:00:06.7]} 31... Bf8 {[%clk 0:00:56.1]} 32. a4 {[%clk 0:00:07]} 32... Re7
{[%clk 0:00:46.3]} 33. Qf1 {[%clk 0:00:04.6]} 33... Rc7 {[%clk 0:00:47.1]} 34.
b5 {[%clk 0:00:05.6]} 34... cxb5 {[%clk 0:00:31.9]} 35. Rxc7 {[%clk 0:00:06.5]}
35... Qxc7 {[%clk 0:00:32.3]} 36. Qxb5 {[%clk 0:00:08.4]} 36... Bd6 {[%clk
0:00:30.7]} 37. Qb2 {[%clk 0:00:06]} 37... Qe7 {[%clk 0:00:29.8]} 38. Kg2 {[%clk
0:00:06.2]} 38... Bb8 {[%clk 0:00:30.4]} 39. a5 {[%clk 0:00:05.2]} 1-0

[Event "*** Titled Tuesday Blitz"]
[Site "Chess.com"]
[Date "2018.08.07"]
[Round "4"]
[White "tomsishere"]
[Black "Kimster98"]
[Result "0-1"]
[WhiteElo "2367"]
[BlackElo "2501"]
[TimeControl "180+2"]
[EndTime "13:49:23 PDT"]
[Termination "Kimster98 won by resignation"]

1. e4 {[%clk 0:02:59.9]} 1... d6 {[%clk 0:02:58.9]} 2. d4 {[%clk 0:02:59.5]}
2... Nf6 {[%clk 0:02:59.5]} 3. Nc3 {[%clk 0:03:00.4]} 3... c6 {[%clk 0:03:00.1]}
4. f4 {[%clk 0:02:59.9]} 4... Qa5 {[%clk 0:02:59.4]} 5. Bd3 {[%clk 0:03:00.2]}
5... e5 {[%clk 0:02:58.9]} 6. Nf3 {[%clk 0:02:58.6]} 6... exd4 {[%clk
0:02:59.5]} 7. Nxd4 {[%clk 0:02:56.8]} 7... g6 {[%clk 0:03:01]} 8. h3 {[%clk
0:02:54.9]} 8... Bg7 {[%clk 0:03:00.9]} 9. Be3 {[%clk 0:02:54.2]} 9... Nbd7
{[%clk 0:02:57.2]} 10. O-O {[%clk 0:02:52.5]} 10... O-O {[%clk 0:02:55.8]} 11.
Qf3 {[%clk 0:02:44.6]} 11... Nc5 {[%clk 0:02:53.6]} 12. Nb3 {[%clk 0:02:26.3]}
12... Nxb3 {[%clk 0:02:42.4]} 13. axb3 {[%clk 0:02:28.2]} 13... Qc7 {[%clk
0:02:43.1]} 14. Rae1 {[%clk 0:02:22.6]} 14... Nd7 {[%clk 0:02:11]} 15. e5 {[%clk
0:02:18.1]} 15... dxe5 {[%clk 0:02:10.8]} 16. f5 {[%clk 0:02:18.8]} 16... Nf6
{[%clk 0:01:44.6]} 17. Ne4 {[%clk 0:01:56]} 17... Nxe4 {[%clk 0:01:42.9]} 18.
Bxe4 {[%clk 0:01:56.1]} 18... Bxf5 {[%clk 0:01:43.2]} 19. Bxf5 {[%clk
0:01:56.7]} 19... gxf5 {[%clk 0:01:45.1]} 20. Qxf5 {[%clk 0:01:54.5]} 20... Qc8
{[%clk 0:01:43.3]} 21. Qh5 {[%clk 0:01:48]} 21... f5 {[%clk 0:01:43.4]} 22. Bh6
{[%clk 0:01:44.8]} 22... Qe6 {[%clk 0:01:37.6]} 23. Bxg7 {[%clk 0:01:17]} 23...
Kxg7 {[%clk 0:01:37.6]} 24. Rf3 {[%clk 0:01:09.3]} 24... Kh8 {[%clk 0:01:31.2]}
25. g4 {[%clk 0:00:25.9]} 25... fxg4 {[%clk 0:01:19.8]} 26. Rxf8+ {[%clk
0:00:25.6]} 26... Rxf8 {[%clk 0:01:20.6]} 27. Qxe5+ {[%clk 0:00:26.7]} 27...
Qxe5 {[%clk 0:01:21.5]} 28. Rxe5 {[%clk 0:00:28.2]} 28... gxh3 {[%clk
0:01:03.9]} 29. Re7 {[%clk 0:00:28.1]} 29... h2+ {[%clk 0:01:01.9]} 30. Kxh2
{[%clk 0:00:29.1]} 30... Rf2+ {[%clk 0:01:01.6]} 31. Kg3 {[%clk 0:00:30]} 31...
Rxc2 {[%clk 0:01:03.5]} 32. Rxb7 {[%clk 0:00:30.2]} 32... Rxb2 {[%clk
0:01:03.7]} 33. Kf4 {[%clk 0:00:22.9]} 33... a5 {[%clk 0:00:55.1]} 34. Rc7
{[%clk 0:00:18.9]} 34... Rxb3 {[%clk 0:00:55.1]} 35. Rxc6 {[%clk 0:00:19.8]}
35... Kg7 {[%clk 0:00:46.9]} 36. Rc5 {[%clk 0:00:13.6]} 36... a4 {[%clk
0:00:46]} 37. Ra5 {[%clk 0:00:14.3]} 37... a3 {[%clk 0:00:45.7]} 38. Kg5 {[%clk
0:00:14.7]} 38... Rg3+ {[%clk 0:00:43.4]} 39. Kh5 {[%clk 0:00:13.6]} 39... Kf6
{[%clk 0:00:42]} 40. Kh4 {[%clk 0:00:12.8]} 40... Rb3 {[%clk 0:00:40]} 41. Kg4
{[%clk 0:00:13.2]} 41... Ke6 {[%clk 0:00:38.3]} 42. Kf4 {[%clk 0:00:14.3]} 42...
Kd6 {[%clk 0:00:38.4]} 43. Kg4 {[%clk 0:00:14.3]} 43... Kc6 {[%clk 0:00:39.2]}
44. Kf4 {[%clk 0:00:08.3]} 44... Kb6 {[%clk 0:00:38.9]} 45. Ra8 {[%clk
0:00:09.1]} 45... Kc5 {[%clk 0:00:39]} 46. Ke4 {[%clk 0:00:09.7]} 46... Rg3
{[%clk 0:00:31.1]} 47. Rc8+ {[%clk 0:00:03]} 47... Kb4 {[%clk 0:00:31.7]} 48.
Rb8+ {[%clk 0:00:03.9]} 48... Kc3 {[%clk 0:00:32.2]} 49. Kf4 {[%clk 0:00:04.3]}
49... Rh3 {[%clk 0:00:32.6]} 50. Ra8 {[%clk 0:00:04.9]} 50... Kb2 {[%clk
0:00:33.6]} 51. Rb8+ {[%clk 0:00:06]} 51... Rb3 {[%clk 0:00:32.9]} 52. Ra8
{[%clk 0:00:05.9]} 52... a2 {[%clk 0:00:34.1]} 0-1

[Event "*** Titled Tuesday Blitz"]
[Site "Chess.com"]
[Date "2018.08.07"]
[Round "4"]
[White "Antifish7"]
[Black "dmosesov"]
[Result "1-0"]
[WhiteElo "2416"]
[BlackElo "2250"]
[TimeControl "180+2"]
[EndTime "13:49:27 PDT"]
[Termination "Antifish7 won by resignation"]

1. d4 {[%clk 0:03:01.9]} 1... Nf6 {[%clk 0:02:59.6]} 2. c4 {[%clk 0:03:03]} 2...
e6 {[%clk 0:02:56.3]} 3. Nf3 {[%clk 0:03:03.8]} 3... d5 {[%clk 0:02:56.3]} 4.
Nc3 {[%clk 0:03:04.7]} 4... Be7 {[%clk 0:02:56.2]} 5. Bg5 {[%clk 0:03:04.5]}
5... O-O {[%clk 0:02:54.2]} 6. e3 {[%clk 0:03:05.2]} 6... Nbd7 {[%clk
0:02:53.1]} 7. Rc1 {[%clk 0:03:03.4]} 7... dxc4 {[%clk 0:02:25.9]} 8. Bxc4
{[%clk 0:03:03.5]} 8... a6 {[%clk 0:02:26.5]} 9. Be2 {[%clk 0:02:53.1]} 9... c5
{[%clk 0:02:26.1]} 10. O-O {[%clk 0:02:48.1]} 10... cxd4 {[%clk 0:02:25]} 11.
Qxd4 {[%clk 0:02:41.9]} 11... Nc5 {[%clk 0:02:14.6]} 12. Bxf6 {[%clk 0:02:35]}
12... gxf6 {[%clk 0:02:15.2]} 13. Qg4+ {[%clk 0:02:32.4]} 13... Kh8 {[%clk
0:02:15.7]} 14. Rfd1 {[%clk 0:02:34.3]} 14... Qb6 {[%clk 0:02:00.6]} 15. b4
{[%clk 0:02:28]} 15... Nd7 {[%clk 0:01:59.8]} 16. Qh5 {[%clk 0:02:20.8]} 16...
Qxb4 {[%clk 0:01:40.3]} 17. Rd4 {[%clk 0:02:19.2]} 17... Qc5 {[%clk 0:01:36.3]}
18. Qh6 {[%clk 0:02:19.1]} 18... f5 {[%clk 0:01:22.3]} 19. Rc4 {[%clk
0:01:52.7]} 19... Qa3 {[%clk 0:01:06.9]} 20. Rd1 {[%clk 0:01:47.5]} 20... b5
{[%clk 0:00:42]} 21. Rc7 {[%clk 0:01:42]} 21... Qa5 {[%clk 0:00:24.5]} 22. Rc6
{[%clk 0:01:09.2]} 22... Rg8 {[%clk 0:00:09.5]} 23. h3 {[%clk 0:00:53.5]} 23...
Nf6 {[%clk 0:00:04]} 24. Ne5 {[%clk 0:00:48.8]} 24... Rg7 {[%clk 0:00:04.1]} 25.
Bf3 {[%clk 0:00:24.4]} 25... b4 {[%clk 0:00:04.8]} 26. Nc4 {[%clk 0:00:19.1]}
26... Qd8 {[%clk 0:00:02]} 27. Rxd8+ {[%clk 0:00:19.5]} 27... Bxd8 {[%clk
0:00:03.9]} 28. Ne2 {[%clk 0:00:16.5]} 28... Bb7 {[%clk 0:00:04.6]} 29. Nd4
{[%clk 0:00:16.6]} 29... Bxc6 {[%clk 0:00:04.9]} 30. Nxc6 {[%clk 0:00:18.5]}
30... Ng8 {[%clk 0:00:06]} 31. Qf4 {[%clk 0:00:18.9]} 31... Bg5 {[%clk
0:00:07.2]} 32. Qe5 {[%clk 0:00:19.5]} 32... Rc8 {[%clk 0:00:07.3]} 33. Nd6
{[%clk 0:00:19.8]} 33... Bf6 {[%clk 0:00:07.1]} 34. Qc5 {[%clk 0:00:18.5]} 34...
Rc7 {[%clk 0:00:07.7]} 35. Qb6 {[%clk 0:00:19.2]} 35... Rd7 {[%clk 0:00:07.5]}
36. Nb8 {[%clk 0:00:17.9]} 36... Bd8 {[%clk 0:00:07.3]} 37. Qxa6 {[%clk
0:00:15.3]} 37... Rc7 {[%clk 0:00:07.8]} 38. Nc6 {[%clk 0:00:16.7]} 38... Be7
{[%clk 0:00:08.2]} 39. Ne8 {[%clk 0:00:16.8]} 39... Rd7 {[%clk 0:00:06.2]} 40.
Nxg7 {[%clk 0:00:17]} 40... Kxg7 {[%clk 0:00:07.5]} 41. Qc4 {[%clk 0:00:16.9]}
41... Nf6 {[%clk 0:00:06.7]} 42. Ne5 {[%clk 0:00:16]} 42... Rd2 {[%clk
0:00:06.6]} 43. Qh4 {[%clk 0:00:16.5]} 43... Rxa2 {[%clk 0:00:05.7]} 44. Qg5+
{[%clk 0:00:17.1]} 44... Kf8 {[%clk 0:00:07.1]} 45. Qh6+ {[%clk 0:00:17.6]}
45... Ke8 {[%clk 0:00:08]} 46. Bh5 {[%clk 0:00:19.3]} 46... Ra1+ {[%clk
0:00:06.5]} 47. Kh2 {[%clk 0:00:20]} 47... Nxh5 {[%clk 0:00:07.9]} 48. Qxh5
{[%clk 0:00:21.2]} 48... Ra7 {[%clk 0:00:04.6]} 49. Qxf7+ {[%clk 0:00:21.5]}
49... Kd8 {[%clk 0:00:05.4]} 50. Nc6+ {[%clk 0:00:22.8]} 1-0

[Event "*** Titled Tuesday Blitz"]
[Site "Chess.com"]
[Date "2018.08.07"]
[Round "4"]
[White "platy3"]
[Black "GMKrikor"]
[Result "1-0"]
[WhiteElo "2732"]
[BlackElo "2778"]
[TimeControl "180+2"]
[EndTime "13:49:33 PDT"]
[Termination "platy3 won on time"]

1. e4 {[%clk 0:03:01]} 1... c5 {[%clk 0:02:54.4]} 2. Nf3 {[%clk 0:03:02]} 2...
g6 {[%clk 0:02:56]} 3. d4 {[%clk 0:03:03]} 3... cxd4 {[%clk 0:02:57.9]} 4. Nxd4
{[%clk 0:03:04.8]} 4... Nc6 {[%clk 0:02:59.1]} 5. c4 {[%clk 0:03:06.1]} 5... Nf6
{[%clk 0:03:00]} 6. Nc3 {[%clk 0:03:06.9]} 6... d6 {[%clk 0:03:01.6]} 7. Be2
{[%clk 0:03:08]} 7... Nxd4 {[%clk 0:03:02]} 8. Qxd4 {[%clk 0:03:09.6]} 8... Bg7
{[%clk 0:03:03.4]} 9. Be3 {[%clk 0:03:11.1]} 9... O-O {[%clk 0:03:03]} 10. Qd2
{[%clk 0:03:12]} 10... a5 {[%clk 0:03:04.2]} 11. f3 {[%clk 0:03:09]} 11... a4
{[%clk 0:03:04]} 12. Kf2 {[%clk 0:03:07.7]} 12... Be6 {[%clk 0:03:00.4]} 13.
Rac1 {[%clk 0:03:01.3]} 13... Qa5 {[%clk 0:02:59.2]} 14. Rhd1 {[%clk 0:02:54.5]}
14... Rfc8 {[%clk 0:02:45.4]} 15. Nb5 {[%clk 0:02:51.7]} 15... Qxd2 {[%clk
0:02:30.5]} 16. Rxd2 {[%clk 0:02:52]} 16... Nd7 {[%clk 0:02:20.3]} 17. Nd4
{[%clk 0:02:50.2]} 17... Nc5 {[%clk 0:01:54.5]} 18. Nxe6 {[%clk 0:02:51.1]}
18... fxe6 {[%clk 0:01:55]} 19. g3 {[%clk 0:02:38.9]} 19... b5 {[%clk
0:01:40.4]} 20. Bf1 {[%clk 0:02:04.4]} 20... b4 {[%clk 0:01:39.8]} 21. Bh3
{[%clk 0:02:05.6]} 21... Kf7 {[%clk 0:01:40.4]} 22. Rb1 {[%clk 0:01:25.7]} 22...
b3 {[%clk 0:01:24.4]} 23. a3 {[%clk 0:01:26.1]} 23... Nd7 {[%clk 0:01:22.8]} 24.
Rc1 {[%clk 0:01:24.2]} 24... Rc7 {[%clk 0:01:19.5]} 25. f4 {[%clk 0:01:03.4]}
25... Rac8 {[%clk 0:01:20.4]} 26. Bf1 {[%clk 0:01:04.7]} 26... Nc5 {[%clk
0:01:06.5]} 27. Kf3 {[%clk 0:01:05.7]} 27... Rc6 {[%clk 0:01:06]} 28. h4 {[%clk
0:01:06.2]} 28... Nb7 {[%clk 0:01:05.1]} 29. c5 {[%clk 0:00:54.2]} 29... Nxc5
{[%clk 0:01:02.9]} 30. Bb5 {[%clk 0:00:54.7]} 30... R6c7 {[%clk 0:00:47.2]} 31.
Bxc5 {[%clk 0:00:55.5]} 31... Rxc5 {[%clk 0:00:42.5]} 32. Rxc5 {[%clk
0:00:53.2]} 32... Rxc5 {[%clk 0:00:25]} 33. Bxa4 {[%clk 0:00:54.3]} 33... Rc2
{[%clk 0:00:08.4]} 34. Rxc2 {[%clk 0:00:54.5]} 34... bxc2 {[%clk 0:00:10.3]} 35.
Bxc2 {[%clk 0:00:55.5]} 35... Bxb2 {[%clk 0:00:12.2]} 36. a4 {[%clk 0:00:56.9]}
36... Bc3 {[%clk 0:00:08.3]} 37. Bb3 {[%clk 0:00:57.8]} 37... h5 {[%clk
0:00:05.1]} 38. Ke3 {[%clk 0:00:48.7]} 38... Kf6 {[%clk 0:00:04.3]} 39. Ke2
{[%clk 0:00:35.2]} 39... Ba5 {[%clk 0:00:04]} 40. Kf3 {[%clk 0:00:33.9]} 40...
Be1 {[%clk 0:00:04.6]} 41. Bc4 {[%clk 0:00:34.9]} 41... Bb4 {[%clk 0:00:04.3]}
42. Kf2 {[%clk 0:00:33.6]} 42... Bc3 {[%clk 0:00:05.3]} 43. Ke2 {[%clk
0:00:34.8]} 43... Bb4 {[%clk 0:00:06.4]} 44. Ba2 {[%clk 0:00:36]} 44... Ba5
{[%clk 0:00:07.7]} 45. Kd3 {[%clk 0:00:20.5]} 45... Be1 {[%clk 0:00:08.5]} 46.
Ke2 {[%clk 0:00:19.7]} 46... Bxg3 {[%clk 0:00:05.2]} 47. a5 {[%clk 0:00:20.9]}
47... Bh2 {[%clk 0:00:04.1]} 48. Kf2 {[%clk 0:00:22.3]} 48... e5 {[%clk
0:00:04.1]} 49. a6 {[%clk 0:00:22.1]} 1-0